[Event "51st Rilton Cup 2023-24"]
[Site "Stockholm"]
[Date "2023.12.29"]
[Round "3.13"]
[White "Hagner, Bennet"]
[Black "Trost, Edvin"]
[Result "0-1"]
[ECO "B12"]
[WhiteElo "2348"]
[BlackElo "2434"]
[Annotator "ChessBase"]
[PlyCount "70"]
[EventDate "2023.12.27"]
[EventType "swiss"]
[EventCountry "SWE"]
[SourceTitle "playchess.com"]
[Source "ChessBase"]
[SourceQuality "1"]
[TimeControl "40/5400+30:1800+30"]

1. e4 {[%emt 0:00:02]} c6 {[%emt 0:01:48]} 2. d4 {[%emt 0:00:07]} d5 {[%emt 0:00:43]} 3. e5 {[%emt 0:00:05]} Bf5 {[%emt 0:00:04]} 4. h4 {[%emt 0:00:12]} h5 {[%emt 0:00:38]} 5. Bd3 {[%emt 0:00:07]} Bxd3 {[%emt 0:00:41]} 6. Qxd3 {[%emt 0:00:07]} Qa5+ {[%emt 0:00:04]} 7. b4 {[%emt 0:00:27]} Qxb4+ {[%emt 0:00:04]} 8. Nd2 {[%emt 0:00:08]} e6 {[%emt 0:00:04]} 9. Rb1 {[%emt 0:00:07]} Qe7 {[%emt 0:00:08]} 10. Ne2 {[%emt 0:00:07]} b5 {[%emt 0:00:36]} 11. a4 {[%emt 0:00:12]} a6 {[%emt 0:00:36]} 12. axb5 {[%emt 0:01:50]} axb5 {[%emt 0:02:03]} 13. Nb3 {[%emt 0:00:25]} Qc7 {[%emt 0:02:49]} 14. Bg5 {[%emt 0:12:12]} Nd7 {[%emt 0:08:20]} 15. O-O {[%emt 0:04:40]} Ne7 {[%emt 0:38:59]} 16. Ra1 {[%emt 0:00:36]} Rb8 {[%emt 0:00:37]} 17. Nf4 {[%emt 0:10:41]} c5 {[%emt 0:03:23]} 18. dxc5 {[%emt 0:07:28]} Nxe5 {[%emt 0:03:07]} 19. Qe2 {[%emt 0:02:27]} N5g6 {[%emt 0:01:30]} 20. g3 {[%emt 0:13:02]} e5 {[%emt 0:02:40]} 21. Nxg6 {[%emt 0:13:56]} Nxg6 {[%emt 0:01:06]} 22. Ra6 {[%emt 0:00:19]} Be7 {[%emt 0:04:03]} 23. Bxe7 {[%emt 0:11:08]} Qxe7 {[%emt 0:03:14]} 24. Rb6 {[%emt 0:03:52]} O-O {[%emt 0:02:17]} 25. Qxb5 {[%emt 0:00:06]} Rbc8 {[%emt 0:00:52]} 26. Qe2 {[%emt 0:02:55]} e4 {[%emt 0:01:43]} 27. Qxh5 {[%emt 0:01:00]} Ne5 {[%emt 0:00:31]} 28. Rd6 {[%emt 0:02:01]} Rxc5 {[%emt 0:01:19]} 29. Nxc5 {[%emt 0:01:59]} Qxd6 {[%emt 0:01:21]} 30. Nb3 {[%emt 0:00:34]} Nf3+ {[%emt 0:01:22]} 31. Kg2 {[%emt 0:00:12]} f5 {[%emt 0:08:09]} 32. Rd1 {[%emt 0:01:49]} Qe5 {[%emt 0:00:07]} 33. Nc5 {[%emt 0:03:08]} Rc8 {[%emt 0:00:35]} 34. Na4 {[%emt 0:03:37]} Rc6 {[%emt 0:01:07]} 35. g4 {[%emt 0:05:33]} Rh6 {[%emt 0:00:30]} 0-1

[Event "51st Rilton Cup 2023-24"]
[Site "Stockholm"]
[Date "2023.12.29"]
[Round "3.14"]
[White "Ostlund, Joar"]
[Black "Martins, David Pires Tavares"]
[Result "1-0"]
[ECO "D32"]
[WhiteElo "2326"]
[BlackElo "2428"]
[Annotator "ChessBase"]
[PlyCount "73"]
[EventDate "2023.12.27"]
[EventType "swiss"]
[EventCountry "SWE"]
[SourceTitle "playchess.com"]
[Source "ChessBase"]
[SourceQuality "1"]
[TimeControl "40/5400+30:1800+30"]

1. d4 {[%emt 0:00:04]} e6 {[%emt 0:00:18]} 2. c4 {[%emt 0:00:15]} d5 {[%emt 0:00:45]} 3. Nc3 {[%emt 0:00:27]} c5 {[%emt 0:00:20]} 4. cxd5 {[%emt 0:00:29]} exd5 {[%emt 0:00:07]} 5. Nf3 {[%emt 0:00:22]} Nc6 {[%emt 0:00:16]} 6. dxc5 {[%emt 0:01:21]} d4 {[%emt 0:00:18]} 7. Na4 {[%emt 0:00:40]} b5 {[%emt 0:00:22]} 8. cxb6 {[%emt 0:01:21]} axb6 {[%emt 0:00:06]} 9. b3 {[%emt 0:09:01]} Nf6 {[%emt 0:44:38]} 10. e4 {[%emt 0:15:32]} b5 {[%emt 0:03:58]} 11. Nb2 {[%emt 0:10:29]} Nxe4 {[%emt 0:01:27]} 12. Qc2 {[%emt 0:08:49]} Bb4+ {[%emt 0:10:08]} 13. Bd2 {[%emt 0:02:58]} O-O {[%emt 0:05:13]} 14. Bxb5 {[%emt 0:27:37]} Nxd2 {[%emt 0:10:04]} 15. Nxd2 {[%emt 0:00:06]} Qg5 {[%emt 0:08:52]} 16. Bxc6 {[%emt 0:02:20]} Bf5 {[%emt 0:00:07]} 17. Qd1 {[%emt 0:03:54]} Bg4 {[%emt 0:09:25]} 18. f3 {[%emt 0:03:36]} Rae8+ {[%emt 0:01:17]} 19. Bxe8 {[%emt 0:00:45]} Bxf3 {[%emt 0:01:28]} 20. gxf3 {[%emt 0:06:50]} Rxe8+ {[%emt 0:00:15]} 21. Kf1 {[%emt 0:00:25]} Bxd2 {[%emt 0:00:06]} 22. Rg1 {[%emt 0:02:25]} Qf4 {[%emt 0:00:25]} 23. Rg2 {[%emt 0:01:17]} Bc3 {[%emt 0:00:21]} 24. Nd3 {[%emt 0:00:43]} Qf5 {[%emt 0:00:08]} 25. Rc1 {[%emt 0:00:29]} Re3 {[%emt 0:00:39]} 26. Nf2 {[%emt 0:00:21]} Rxf3 {[%emt 0:00:42]} 27. Qe2 {[%emt 0:00:12]} h5 {[%emt 0:01:07]} 28. Kg1 {[%emt 0:01:00]} Re3 {[%emt 0:00:47]} 29. Qf1 {[%emt 0:00:26]} h4 {[%emt 0:00:27]} 30. h3 {[%emt 0:00:44]} Rf3 {[%emt 0:00:41]} 31. Qe2 {[%emt 0:00:20]} g6 {[%emt 0:00:34]} 32. Ng4 {[%emt 0:00:17]} Kh7 {[%emt 0:00:19]} 33. Rf1 {[%emt 0:00:12]} Rf4 {[%emt 0:00:33]} 34. Rxf4 {[%emt 0:00:22]} Qxf4 {[%emt 0:00:04]} 35. Qf1 {[%emt 0:00:26]} Qc7 {[%emt 0:00:13]} 36. Nf6+ {[%emt 0:00:14]} Kh8 {[%emt 0:00:08]} 37. Ne8 {[%emt 0:00:12]} 1-0

[Event "51st Rilton Cup 2023-24"]
[Site "Stockholm"]
[Date "2023.12.29"]
[Round "3.15"]
[White "Jarmula, Lukasz"]
[Black "Falkevall, Axel"]
[Result "1-0"]
[ECO "E71"]
[WhiteElo "2425"]
[BlackElo "2311"]
[Annotator "ChessBase"]
[PlyCount "157"]
[EventDate "2023.12.27"]
[EventType "swiss"]
[EventCountry "SWE"]
[SourceTitle "playchess.com"]
[Source "ChessBase"]
[SourceQuality "1"]
[TimeControl "40/5400+30:1800+30"]

1. c4 {[%emt 0:00:02]} Nf6 {[%emt 0:00:11]} 2. Nc3 {[%emt 0:00:07]} g6 {[%emt 0:00:05]} 3. e4 {[%emt 0:00:05]} d6 {[%emt 0:00:05]} 4. d4 {[%emt 0:00:05]} Bg7 {[%emt 0:00:05]} 5. h3 {[%emt 0:00:07]} O-O {[%emt 0:00:10]} 6. Be3 {[%emt 0:00:03]} e5 {[%emt 0:00:17]} 7. d5 {[%emt 0:00:10]} Na6 {[%emt 0:00:12]} 8. g4 {[%emt 0:01:33]} Nc5 {[%emt 0:00:10]} 9. Qc2 {[%emt 0:01:13]} c6 {[%emt 0:01:07]} 10. Nge2 {[%emt 0:03:07]} cxd5 {[%emt 0:01:48]} 11. cxd5 {[%emt 0:00:08]} a5 {[%emt 0:02:57]} 12. Ng3 {[%emt 0:01:01]} Bd7 {[%emt 0:03:16]} 13. f3 {[%emt 0:09:20]} h5 {[%emt 0:07:52]} 14. Rg1 {[%emt 0:07:22]} h4 {[%emt 0:02:26]} 15. Nh1 {[%emt 0:00:10]} Rc8 {[%emt 0:04:20]} 16. Qd2 {[%emt 0:01:17]} Qe8 {[%emt 0:08:59]} 17. Bg5 {[%emt 0:06:56]} b5 {[%emt 0:05:20]} 18. Bxh4 {[%emt 0:02:33]} b4 {[%emt 0:01:30]} 19. Nd1 {[%emt 0:00:12]} Nh7 {[%emt 0:26:25]} 20. Ne3 {[%emt 0:07:54]} Bb5 {[%emt 0:05:50]} 21. Nf2 {[%emt 0:01:15]} f6 {[%emt 0:01:19]} 22. Nc4 {[%emt 0:11:21]} Bxc4 {[%emt 0:02:12]} 23. Bxc4 {[%emt 0:00:08]} Ng5 {[%emt 0:00:59]} 24. Bxg5 {[%emt 0:06:26]} fxg5 {[%emt 0:00:06]} 25. Be2 {[%emt 0:01:40]} Bf6 {[%emt 0:02:44]} 26. Kf1 {[%emt 0:01:01]} Bd8 {[%emt 0:01:22]} 27. Kg2 {[%emt 0:00:28]} Rf4 {[%emt 0:02:16]} 28. Rh1 {[%emt 0:03:04]} Rc7 {[%emt 0:03:22]} 29. Rac1 {[%emt 0:04:17]} Qf8 {[%emt 0:03:33]} 30. Qe3 {[%emt 0:09:25]} Rcf7 {[%emt 0:02:33]} 31. Nd3 {[%emt 0:01:55]} Nxd3 {[%emt 0:00:49]} 32. Qxd3 {[%emt 0:00:07]} Bb6 {[%emt 0:00:51]} 33. Rc6 {[%emt 0:02:53]} Bc5 {[%emt 0:01:03]} 34. Rc1 {[%emt 0:00:16]} Kg7 {[%emt 0:02:02]} 35. R1xc5 {[%emt 0:05:33]} dxc5 {[%emt 0:00:06]} 36. d6 {[%emt 0:00:07]} c4 {[%emt 0:05:29]} 37. Qxc4 {[%emt 0:03:47]} Rxf3 {[%emt 0:00:41]} 38. Bxf3 {[%emt 0:04:44]} Rxf3 {[%emt 0:00:05]} 39. Qe2 {[%emt 0:01:43]} Rf7 {[%emt 0:01:29]} 40. Qe3 {[%emt 0:00:51]} Qd8 {[%emt 0:01:21]} 41. Qd3 {[%emt 0:11:34]} Kh6 {[%emt 0:04:39]} 42. b3 {[%emt 0:04:20]} Qf6 {[%emt 0:02:15]} 43. Rc2 {[%emt 0:00:21]} Rd7 {[%emt 0:00:12]} 44. Rd2 {[%emt 0:00:16]} Kg7 {[%emt 0:00:32]} 45. Kg1 {[%emt 0:05:03]} Kh6 {[%emt 0:04:10]} 46. Qd5 {[%emt 0:02:05]} Qf4 {[%emt 0:03:22]} 47. Kg2 {[%emt 0:01:06]} Qf6 {[%emt 0:02:30]} 48. Rd1 {[%emt 0:03:59]} Rd8 {[%emt 0:06:40]} 49. d7 {[%emt 0:01:14]} Rf8 {[%emt 0:00:12]} 50. Qd3 {[%emt 0:00:48]} Qf2+ {[%emt 0:00:41]} 51. Kh1 {[%emt 0:00:04]} Rd8 {[%emt 0:00:43]} 52. Rd2 {[%emt 0:00:38]} Qf6 {[%emt 0:06:29]} 53. Kg2 {[%emt 0:00:57]} Kg7 {[%emt 0:00:09]} 54. Qd6 {[%emt 0:05:08]} Qf4 {[%emt 0:01:59]} 55. Qd5 {[%emt 0:00:15]} Qf6 {[%emt 0:00:55]} 56. Rc2 {[%emt 0:01:24]} Rf8 {[%emt 0:00:44]} 57. Qd3 {[%emt 0:00:10]} Kh6 {[%emt 0:00:54]} 58. Rd2 {[%emt 0:01:34]} Rd8 {[%emt 0:00:07]} 59. Qd6 {[%emt 0:00:50]} Qf4 {[%emt 0:00:29]} 60. Qd5 {[%emt 0:00:10]} Qe3 {[%emt 0:02:03]} 61. Rf2 {[%emt 0:00:56]} Qd4 {[%emt 0:00:30]} 62. Qxd4 {[%emt 0:02:21]} exd4 {[%emt 0:00:04]} 63. Rf7 {[%emt 0:00:08]} d3 {[%emt 0:00:27]} 64. Kf2 {[%emt 0:00:25]} d2 {[%emt 0:00:54]} 65. Ke2 {[%emt 0:00:06]} a4 {[%emt 0:00:16]} 66. h4 {[%emt 0:01:07]} gxh4 {[%emt 0:00:34]} 67. e5 {[%emt 0:00:07]} axb3 {[%emt 0:00:22]} 68. axb3 {[%emt 0:00:06]} h3 {[%emt 0:01:38]} 69. e6 {[%emt 0:00:17]} d1=Q+ {[%emt 0:01:38]} 70. Kxd1 {[%emt 0:00:07]} h2 {[%emt 0:00:27]} 71. Rf1 {[%emt 0:00:28]} Kg5 {[%emt 0:00:26]} 72. Kc2 {[%emt 0:00:38]} h1=Q {[%emt 0:01:10]} 73. Rxh1 {[%emt 0:00:05]} Kf6 {[%emt 0:00:03]} 74. Re1 {[%emt 0:00:32]} Ke7 {[%emt 0:00:04]} 75. Kd3 {[%emt 0:00:20]} Rb8 {[%emt 0:00:04]} 76. Kc4 {[%emt 0:00:27]} g5 {[%emt 0:00:07]} 77. Rd1 {[%emt 0:00:47]} Rd8 {[%emt 0:00:07]} 78. Kd5 {[%emt 0:00:24]} Rf8 {[%emt 0:00:13]} 79. Ke4 {[%emt 0:00:35]} 1-0

[Event "51st Rilton Cup 2023-24"]
[Site "Stockholm"]
[Date "2023.12.29"]
[Round "3.16"]
[White "Dragicevic, Drazen"]
[Black "Oratovsky, Michael"]
[Result "1/2-1/2"]
[ECO "A49"]
[WhiteElo "2322"]
[BlackElo "2421"]
[Annotator "ChessBase"]
[PlyCount "70"]
[EventDate "2023.12.27"]
[EventType "swiss"]
[EventCountry "SWE"]
[SourceTitle "playchess.com"]
[Source "ChessBase"]
[SourceQuality "1"]
[TimeControl "40/5400+30:1800+30"]

1. Nf3 {[%emt 0:02:47]} d6 {[%emt 0:06:01]} 2. d4 {[%emt 0:00:00]} Nf6 {[%emt 0:00:24]} 3. b3 {[%emt 0:01:24]} g6 {[%emt 0:01:44]} 4. g3 {[%emt 0:00:10]} Bg7 {[%emt 0:00:14]} 5. Bg2 {[%emt 0:00:07]} O-O {[%emt 0:05:44]} 6. O-O {[%emt 0:00:12]} e5 {[%emt 0:01:38]} 7. dxe5 {[%emt 0:05:11]} dxe5 {[%emt 0:08:20]} 8. Ba3 {[%emt 0:05:41]} Qxd1 {[%emt 0:01:28]} 9. Rxd1 {[%emt 0:00:09]} Re8 {[%emt 0:00:03]} 10. Nc3 {[%emt 0:06:22]} e4 {[%emt 0:03:16]} 11. Nd4 {[%emt 0:00:29]} a6 {[%emt 0:00:50]} 12. e3 {[%emt 0:08:54]} b6 {[%emt 0:41:14]} 13. h3 {[%emt 0:15:58]} h5 {[%emt 0:02:39]} 14. Rac1 {[%emt 0:14:29]} Nbd7 {[%emt 0:10:11]} 15. Na4 {[%emt 0:12:49]} Ne5 {[%emt 0:11:43]} 16. c4 {[%emt 0:02:06]} Rb8 {[%emt 0:00:17]} 17. Nc3 {[%emt 0:09:59]} c5 {[%emt 0:00:17]} 18. Nde2 {[%emt 0:00:19]} Bf5 {[%emt 0:01:05]} 19. Nf4 {[%emt 0:02:41]} g5 {[%emt 0:01:02]} 20. Nfd5 {[%emt 0:00:22]} Nd3 {[%emt 0:00:39]} 21. Nxf6+ {[%emt 0:02:01]} Bxf6 {[%emt 0:00:02]} 22. Nd5 {[%emt 0:00:08]} Bg7 {[%emt 0:01:06]} 23. Rc2 {[%emt 0:00:16]} Bg6 {[%emt 0:01:02]} 24. Bf1 {[%emt 0:04:54]} Rb7 {[%emt 0:00:46]} 25. f4 {[%emt 0:01:15]} gxf4 {[%emt 0:00:36]} 26. gxf4 {[%emt 0:02:03]} Rd8 {[%emt 0:00:31]} 27. Rg2 {[%emt 0:00:48]} Kh7 {[%emt 0:00:22]} 28. Rg5 {[%emt 0:00:39]} f6 {[%emt 0:00:42]} 29. Rg2 {[%emt 0:00:23]} b5 {[%emt 0:00:14]} 30. Bxd3 {[%emt 0:02:10]} exd3 {[%emt 0:00:02]} 31. Bxc5 {[%emt 0:00:25]} Be4 {[%emt 0:00:23]} 32. Rgd2 {[%emt 0:00:22]} bxc4 {[%emt 0:00:33]} 33. bxc4 {[%emt 0:00:17]} f5 {[%emt 0:00:57]} 34. Bd4 {[%emt 0:00:49]} Bxd4 {[%emt 0:00:51]} 35. exd4 {[%emt 0:00:01]} Kh6 {[%emt 0:00:33]} 1/2-1/2

[Event "51st Rilton Cup 2023-24"]
[Site "Stockholm"]
[Date "2023.12.29"]
[Round "3.17"]
[White "Marn, Jan"]
[Black "Pasti, Aron"]
[Result "1/2-1/2"]
[ECO "E08"]
[WhiteElo "2322"]
[BlackElo "2410"]
[Annotator "ChessBase"]
[PlyCount "61"]
[EventDate "2023.12.27"]
[EventType "swiss"]
[EventCountry "SWE"]
[SourceTitle "playchess.com"]
[Source "ChessBase"]
[SourceQuality "1"]
[TimeControl "40/5400+30:1800+30"]

1. d4 {[%emt 3:48:24]} Nf6 {[%emt 0:00:06]} 2. c4 {[%emt 0:00:04]} e6 {[%emt 0:00:03]} 3. Nf3 {[%emt 0:00:03]} d5 {[%emt 0:00:04]} 4. g3 {[%emt 0:00:07]} Be7 {[%emt 0:00:04]} 5. Bg2 {[%emt 0:00:12]} O-O {[%emt 0:00:05]} 6. O-O {[%emt 0:00:05]} c6 {[%emt 0:00:02]} 7. Qc2 {[%emt 0:00:48]} b6 {[%emt 0:00:05]} 8. Rd1 {[%emt 0:00:22]} Nbd7 {[%emt 0:00:48]} 9. b3 {[%emt 0:00:08]} Bb7 {[%emt 0:00:05]} 10. Nc3 {[%emt 0:01:35]} Ba6 {[%emt 0:00:56]} 11. Qd3 {[%emt 0:08:27]} Rc8 {[%emt 0:24:03]} 12. Bb2 {[%emt 0:00:00]} b5 {[%emt 0:07:31]} 13. cxb5 {[%emt 0:00:00]} cxb5 {[%emt 0:00:01]} 14. Nxb5 {[%emt 0:00:00]} Ne4 {[%emt 0:00:16]} 15. a4 {[%emt 0:00:00]} Qb6 {[%emt 0:10:05]} 16. e3 {[%emt 0:00:00]} Nb8 {[%emt 0:00:10]} 17. Rdc1 {[%emt 0:00:00]} Nc6 {[%emt 0:01:50]} 18. Bf1 {[%emt 0:00:00]} Na5 {[%emt 0:07:18]} 19. Rxc8 {[%emt 0:00:00]} Rxc8 {[%emt 0:05:14]} 20. Rc1 {[%emt 0:00:00]} Rxc1 {[%emt 0:04:47]} 21. Bxc1 {[%emt 0:00:00]} Bb7 {[%emt 0:00:01]} 22. Qc2 {[%emt 0:00:00]} a6 {[%emt 0:03:35]} 23. Ba3 {[%emt 0:00:00]} Bxa3 {[%emt 0:04:01]} 24. Nxa3 {[%emt 0:00:00]} Nxb3 {[%emt 0:01:38]} 25. Nb5 {[%emt 0:00:00]} Na5 {[%emt 0:01:43]} 26. Qc7 {[%emt 0:00:00]} Qxc7 {[%emt 0:00:02]} 27. Nxc7 {[%emt 0:00:00]} Bc6 {[%emt 0:00:02]} 28. Nxa6 {[%emt 0:00:00]} Bxa4 {[%emt 0:00:13]} 29. Nb4 {[%emt 0:00:00]} Nc6 {[%emt 0:00:27]} 30. Nxc6 {[%emt 0:00:00]} Bxc6 {[%emt 0:00:02]} 31. Ne5 {[%emt 0:00:00]} 1/2-1/2

[Event "51st Rilton Cup 2023-24"]
[Site "Stockholm"]
[Date "2023.12.29"]
[Round "3.18"]
[White "Sidhant, Mohapatra"]
[Black "Utsab Chatterjee"]
[Result "1-0"]
[ECO "C50"]
[WhiteElo "2408"]
[BlackElo "2289"]
[Annotator "ChessBase"]
[PlyCount "41"]
[EventDate "2023.12.27"]
[EventType "swiss"]
[EventCountry "SWE"]
[SourceTitle "playchess.com"]
[Source "ChessBase"]
[SourceQuality "1"]
[TimeControl "40/5400+30:1800+30"]

1. e4 {[%emt 0:00:03]} e5 {[%emt 0:04:03]} 2. Nf3 {[%emt 0:00:24]} Nc6 {[%emt 0:00:16]} 3. Bc4 {[%emt 0:01:02]} Nf6 {[%emt 0:00:25]} 4. d3 {[%emt 0:00:09]} Bc5 {[%emt 0:00:10]} 5. Nc3 {[%emt 0:03:28]} h6 {[%emt 0:04:01]} 6. O-O {[%emt 0:01:59]} a6 {[%emt 0:00:26]} 7. a4 {[%emt 0:02:30]} d6 {[%emt 0:00:13]} 8. Nd5 {[%emt 0:02:13]} Nxd5 {[%emt 0:04:25]} 9. Bxd5 {[%emt 0:00:56]} Ne7 {[%emt 0:00:07]} 10. Bb3 {[%emt 0:01:04]} Ng6 {[%emt 0:03:58]} 11. Be3 {[%emt 0:14:27]} Qf6 {[%emt 0:04:29]} 12. d4 {[%emt 0:01:44]} Bg4 {[%emt 0:13:03]} 13. dxc5 {[%emt 0:05:01]} Nh4 {[%emt 0:00:08]} 14. Bxf7+ {[%emt 0:04:09]} Kf8 {[%emt 0:00:31]} 15. Nxe5 {[%emt 0:00:12]} Bxd1 {[%emt 0:00:07]} 16. Nd7+ {[%emt 0:00:02]} Kxf7 {[%emt 0:00:09]} 17. Nxf6 {[%emt 0:00:03]} Bxc2 {[%emt 0:01:18]} 18. Rfc1 {[%emt 0:00:25]} Bd3 {[%emt 0:12:36]} 19. Ra3 {[%emt 0:01:57]} Be2 {[%emt 0:00:32]} 20. Nd5 {[%emt 0:01:03]} c6 {[%emt 0:00:16]} 21. Nf4 {[%emt 0:01:28]} 1-0

[Event "51st Rilton Cup 2023-24"]
[Site "Stockholm"]
[Date "2023.12.29"]
[Round "3.19"]
[White "Dhulipalla Bala Chandra Prasad"]
[Black "Ajay Santhosh Parvathareddy"]
[Result "1/2-1/2"]
[ECO "E62"]
[WhiteElo "2396"]
[BlackElo "2228"]
[Annotator "ChessBase"]
[PlyCount "103"]
[EventDate "2023.12.27"]
[EventType "swiss"]
[EventCountry "SWE"]
[SourceTitle "playchess.com"]
[Source "ChessBase"]
[SourceQuality "1"]
[TimeControl "40/5400+30:1800+30"]

1. d4 {[%emt 0:00:03]} Nf6 {[%emt 0:03:06]} 2. c4 {[%emt 0:00:07]} g6 {[%emt 0:00:12]} 3. g3 {[%emt 0:00:05]} Bg7 {[%emt 0:00:04]} 4. Bg2 {[%emt 0:00:04]} O-O {[%emt 0:00:07]} 5. Nc3 {[%emt 0:00:03]} c6 {[%emt 0:00:04]} 6. Nf3 {[%emt 0:01:58]} d6 {[%emt 0:00:36]} 7. O-O {[%emt 0:00:08]} Bf5 {[%emt 0:00:25]} 8. Re1 {[%emt 0:00:34]} Ne4 {[%emt 0:00:07]} 9. Qb3 {[%emt 0:00:06]} Nxc3 {[%emt 0:01:02]} 10. bxc3 {[%emt 0:00:02]} Bc8 {[%emt 0:00:30]} 11. Ba3 {[%emt 0:00:08]} Nd7 {[%emt 0:00:34]} 12. e4 {[%emt 0:00:05]} Qc7 {[%emt 0:01:07]} 13. e5 {[%emt 0:09:47]} Rd8 {[%emt 0:14:56]} 14. exd6 {[%emt 0:37:15]} exd6 {[%emt 0:00:06]} 15. c5 {[%emt 0:00:19]} d5 {[%emt 0:02:48]} 16. Bc1 {[%emt 0:00:08]} Qa5 {[%emt 0:17:22]} 17. Bg5 {[%emt 0:03:38]} Bf6 {[%emt 0:02:04]} 18. h4 {[%emt 0:02:54]} Bxg5 {[%emt 0:11:23]} 19. Nxg5 {[%emt 0:09:59]} Nf6 {[%emt 0:09:16]} 20. Re7 {[%emt 0:00:45]} Rf8 {[%emt 0:04:11]} 21. Rae1 {[%emt 0:02:18]} Qd8 {[%emt 0:09:48]} 22. Qd1 {[%emt 0:14:14]} b6 {[%emt 0:04:51]} 23. Qa4 {[%emt 0:12:35]} Bd7 {[%emt 0:01:38]} 24. R7e3 {[%emt 0:00:41]} Re8 {[%emt 0:01:08]} 25. Rxe8+ {[%emt 0:00:20]} Bxe8 {[%emt 0:00:08]} 26. Qa3 {[%emt 0:00:25]} Bd7 {[%emt 0:02:06]} 27. Qc1 {[%emt 0:00:54]} Bf5 {[%emt 0:02:59]} 28. Qf4 {[%emt 0:00:34]} bxc5 {[%emt 0:02:25]} 29. dxc5 {[%emt 0:00:07]} Rb8 {[%emt 0:01:08]} 30. Nf3 {[%emt 0:02:00]} Bd7 {[%emt 0:02:48]} 31. Nd4 {[%emt 0:00:00]} Be8 {[%emt 0:01:46]} 32. Qg5 {[%emt 0:00:00]} Bd7 {[%emt 0:00:53]} 33. Qf4 {[%emt 0:00:26]} Be8 {[%emt 0:00:05]} 34. Bf3 {[%emt 0:03:05]} h5 {[%emt 0:03:19]} 35. Kg2 {[%emt 0:00:00]} Rb2 {[%emt 0:00:22]} 36. Qe5 {[%emt 0:00:00]} Kg7 {[%emt 0:01:04]} 37. Qg5 {[%emt 0:00:07]} Bd7 {[%emt 0:00:00]} 38. Bxh5 {[%emt 0:00:57]} Rxa2 {[%emt 0:01:36]} 39. Bf3 {[%emt 0:00:07]} a5 {[%emt 0:00:44]} 40. Qf4 {[%emt 0:01:06]} Rb2 {[%emt 0:00:37]} 41. g4 {[%emt 0:11:30]} Nxg4 {[%emt 0:11:07]} 42. Bxg4 {[%emt 0:01:00]} Qxh4 {[%emt 0:00:06]} 43. Qe5+ {[%emt 0:00:41]} Kg8 {[%emt 0:00:06]} 44. Bxd7 {[%emt 0:07:45]} Rxf2+ {[%emt 0:10:09]} 45. Kg1 {[%emt 0:00:14]} Rf4 {[%emt 0:00:09]} 46. Re2 {[%emt 0:13:02]} Qg3+ {[%emt 0:00:50]} 47. Rg2 {[%emt 0:00:02]} Rf1+ {[%emt 0:00:07]} 48. Kxf1 {[%emt 0:00:02]} Qxe5 {[%emt 0:00:07]} 49. Bxc6 {[%emt 0:00:31]} Qf4+ {[%emt 0:00:41]} 50. Ke2 {[%emt 0:00:23]} Qe4+ {[%emt 0:00:43]} 51. Kf2 {[%emt 0:00:07]} Qf4+ {[%emt 0:05:04]} 52. Ke2 {[%emt 0:01:25]} 1/2-1/2

[Event "51st Rilton Cup 2023-24"]
[Site "Stockholm"]
[Date "2023.12.29"]
[Round "3.20"]
[White "Yordanov, Lachezar"]
[Black "Romanishin, Oleg M"]
[Result "1-0"]
[ECO "E29"]
[WhiteElo "2312"]
[BlackElo "2384"]
[Annotator "ChessBase"]
[PlyCount "82"]
[EventDate "2023.12.27"]
[EventType "swiss"]
[EventCountry "SWE"]
[SourceTitle "playchess.com"]
[Source "ChessBase"]
[SourceQuality "1"]
[TimeControl "40/5400+30:1800+30"]

1. d4 {[%emt 0:04:47]} Nf6 {[%emt 0:00:05]} 2. c4 {[%emt 0:00:05]} e6 {[%emt 0:00:05]} 3. Nc3 {[%emt 0:00:04]} Bb4 {[%emt 0:00:05]} 4. e3 {[%emt 0:00:06]} O-O {[%emt 0:00:09]} 5. Bd3 {[%emt 0:00:15]} c5 {[%emt 0:03:30]} 6. a3 {[%emt 0:00:18]} Bxc3+ {[%emt 0:01:55]} 7. bxc3 {[%emt 0:00:07]} Nc6 {[%emt 0:04:52]} 8. Rb1 {[%emt 0:01:07]} d6 {[%emt 0:05:20]} 9. Ne2 {[%emt 0:04:45]} e5 {[%emt 0:01:29]} 10. e4 {[%emt 0:04:50]} cxd4 {[%emt 0:17:05]} 11. cxd4 {[%emt 0:00:08]} exd4 {[%emt 0:00:32]} 12. O-O {[%emt 0:00:13]} Nd7 {[%emt 0:11:45]} 13. Bc2 {[%emt 0:07:01]} Nde5 {[%emt 0:08:04]} 14. Nxd4 {[%emt 0:01:13]} Nxc4 {[%emt 0:00:07]} 15. Nxc6 {[%emt 0:13:15]} bxc6 {[%emt 0:00:09]} 16. Qd4 {[%emt 0:00:11]} Be6 {[%emt 0:07:13]} 17. Rb3 {[%emt 0:13:39]} f6 {[%emt 0:07:08]} 18. Rc3 {[%emt 0:09:40]} c5 {[%emt 0:06:57]} 19. Qd3 {[%emt 0:01:12]} Ne5 {[%emt 0:00:17]} 20. Qg3 {[%emt 0:00:04]} Nc6 {[%emt 0:03:03]} 21. f4 {[%emt 0:08:52]} Nd4 {[%emt 0:00:30]} 22. Bd1 {[%emt 0:00:06]} f5 {[%emt 0:04:31]} 23. exf5 {[%emt 0:02:18]} Bxf5 {[%emt 0:00:34]} 24. Qf2 {[%emt 0:00:52]} Qf6 {[%emt 0:00:32]} 25. g4 {[%emt 0:02:15]} Be4 {[%emt 0:01:16]} 26. Rh3 {[%emt 0:00:04]} Rab8 {[%emt 0:02:13]} 27. f5 {[%emt 0:00:25]} Bd5 {[%emt 0:02:38]} 28. Re1 {[%emt 0:02:21]} Rb1 {[%emt 0:01:43]} 29. Bf4 {[%emt 0:02:17]} h6 {[%emt 0:02:25]} 30. Rhe3 {[%emt 0:00:37]} Ra1 {[%emt 0:05:00]} 31. Bg3 {[%emt 0:01:27]} Ra2 {[%emt 0:01:19]} 32. Qf4 {[%emt 0:00:04]} Rg2+ {[%emt 0:03:18]} 33. Kf1 {[%emt 0:00:05]} Nc2 {[%emt 0:00:35]} 34. Rd3 {[%emt 0:00:46]} Nd4 {[%emt 0:00:28]} 35. Qxd6 {[%emt 0:02:17]} Qxd6 {[%emt 0:00:28]} 36. Bxd6 {[%emt 0:00:06]} Rc8 {[%emt 0:00:33]} 37. Re5 {[%emt 0:00:18]} Bb7 {[%emt 0:00:26]} 38. Rxc5 {[%emt 0:00:54]} Rxc5 {[%emt 0:00:26]} 39. Bxc5 {[%emt 0:00:05]} Nc2 {[%emt 0:00:41]} 40. Rd8+ {[%emt 0:01:17]} Kh7 {[%emt 0:00:03]} 41. Bf2 {[%emt 0:30:14]} Bc8 {[%emt 0:04:15]} 1-0